[Event "Chess House GM December 2019"]
[Site "Aarhus"]
[Date "2019.12.14"]
[Round "4.4"]
[White "Ochsner, Bjorn Moller"]
[Black "Vinter-Schou, Uffe"]
[Result "1-0"]
[ECO "B12"]
[WhiteElo "2492"]
[BlackElo "2359"]
[Annotator "RC"]
[PlyCount "59"]
[EventDate "2019.12.11"]
[EventType "tourn"]
[EventCountry "DEN"]
[SourceTitle "playchess.com"]
[Source "ChessBase"]
[SourceQuality "1"]
[TimeControl "40/5400+30:1800+30"]

1. e4 {[%emt 0:00:42]} c6 {[%emt 0:00:00]} 2. d4 {[%emt 0:00:10]} d5 {[%emt 0:00:00]} 3. e5 {[%emt 0:00:12]} Bf5 {[%emt 0:00:00]} 4. h4 {[%emt 0:00:10]} c5 {[%emt 0:00:14]} 5. dxc5 {[%emt 0:08:46]} Nc6 {[%emt 0:00:15]} 6. Bb5 {[%emt 0:07:45]} Qc7 {[%emt 0:01:18]} 7. Nc3 {[%emt 0:05:52]} O-O-O {[%emt 0:05:00]} 8. Bxc6 {[%emt 0:05:00]} Qxe5+ {[%emt 0:37:32]} 9. Nge2 {[%emt 0:01:16]} bxc6 {[%emt 0:00:39]} 10. Bf4 {[%emt 0:00:39]} Qf6 {[%emt 0:00:14]} 11. Qd2 {[%emt 0:01:35]} h6 {[%emt 0:04:42]} 12. O-O-O {[%emt 0:01:59]} g6 {[%emt 0:01:15]} 13. Nd4 {[%emt 0:06:27]} Bg7 {[%emt 0:03:23]} 14. Be5 {[%emt 0:09:29]} Qxe5 {[%emt 0:00:06]} 15. Nxc6 {[%emt 0:00:12]} Qc7 {[%emt 0:18:45]} 16. Nb5 {[%emt 0:01:04]} Qxc6 {[%emt 0:00:15]} 17. Nxa7+ {[%emt 0:00:06]} Kb7 {[%emt 0:00:12]} 18. Nxc6 {[%emt 0:00:24]} Kxc6 {[%emt 0:00:02]} 19. Qb4 {[%emt 0:01:42]} Nf6 {[%emt 0:02:34]} 20. Qb6+ {[%emt 0:01:45]} Kd7 {[%emt 0:00:08]} 21. c6+ {[%emt 0:02:33]} Ke8 {[%emt 0:00:02]} 22. Rhe1 {[%emt 0:09:23]} e6 {[%emt 0:00:08]} 23. a4 {[%emt 0:01:16]} h5 {[%emt 0:22:12]} 24. Qb7 {[%emt 0:01:14]} Bh6+ {[%emt 0:01:50]} 25. Kb1 {[%emt 0:00:03]} e5 {[%emt 0:00:17]} 26. Rxe5+ {[%emt 0:00:31]} Kf8 {[%emt 0:00:08]} 27. c7 {[%emt 0:00:10]} Rc8 {[%emt 0:00:23]} 28. Rxf5 {[%emt 0:00:12]} Kg7 {[%emt 0:00:05]} 29. Rxf6 {[%emt 0:00:33]} Kxf6 {[%emt 0:00:11]} 30. g3 {[%emt 0:00:24]} 1-0

[Event "Chess House GM December 2019"]
[Site "Aarhus"]
[Date "2019.12.14"]
[Round "5.2"]
[White "Olsen, Filip Boe"]
[Black "Thybo, Jesper Sondergaard"]
[Result "0-1"]
[ECO "E04"]
[WhiteElo "2341"]
[BlackElo "2576"]
[Annotator "ChessBase"]
[PlyCount "72"]
[EventDate "2019.12.11"]
[EventType "tourn"]
[EventCountry "DEN"]
[SourceTitle "playchess.com"]
[Source "ChessBase"]
[SourceQuality "1"]
[TimeControl "40/5400+30:1800+30"]

1. d4 {[%emt 0:00:00]} e6 {[%emt 0:00:00]} 2. c4 {[%emt 0:00:00]} Nf6 {[%emt 0:00:00]} 3. Nf3 {[%emt 0:00:06]} d5 {[%emt 0:00:00]} 4. g3 {[%emt 0:00:15]} dxc4 {[%emt 0:00:02]} 5. Bg2 {[%emt 0:00:12]} c6 {[%emt 0:00:06]} 6. Ne5 {[%emt 0:03:45]} Bb4+ {[%emt 0:00:16]} 7. Bd2 {[%emt 0:01:44]} Be7 {[%emt 0:00:08]} 8. e3 {[%emt 0:03:58]} b5 {[%emt 0:00:14]} 9. O-O {[%emt 0:06:45]} Bb7 {[%emt 0:25:32]} 10. b3 {[%emt 0:07:50]} cxb3 {[%emt 0:00:49]} 11. axb3 {[%emt 0:00:32]} a5 {[%emt 0:08:59]} 12. Nc3 {[%emt 0:09:44]} Qb6 {[%emt 0:00:54]} 13. Ne4 {[%emt 0:07:52]} Nxe4 {[%emt 0:08:51]} 14. Bxe4 {[%emt 0:00:16]} Nd7 {[%emt 0:00:21]} 15. Nd3 {[%emt 0:14:09]} O-O {[%emt 0:02:12]} 16. Qc2 {[%emt 0:05:44]} g6 {[%emt 0:03:32]} 17. Rfc1 {[%emt 0:05:09]} Rfc8 {[%emt 0:04:39]} 18. Qa2 {[%emt 0:10:23]} b4 {[%emt 0:10:11]} 19. Nb2 {[%emt 0:06:19]} c5 {[%emt 0:00:22]} 20. Nc4 {[%emt 0:01:53]} Qa7 {[%emt 0:00:09]} 21. Bxb7 {[%emt 0:01:26]} Qxb7 {[%emt 0:00:05]} 22. Qb2 {[%emt 0:00:45]} Qb5 {[%emt 0:07:34]} 23. e4 {[%emt 0:02:47]} cxd4 {[%emt 0:01:40]} 24. Qxd4 {[%emt 0:02:04]} Bf6 {[%emt 0:00:19]} 25. Qd6 {[%emt 0:02:25]} Ra6 {[%emt 0:02:36]} 26. Rxa5 {[%emt 0:03:21]} Rxd6 {[%emt 0:00:41]} 27. Rxb5 {[%emt 0:00:11]} Rxd2 {[%emt 0:00:04]} 28. Rxb4 {[%emt 0:02:11]} Ne5 {[%emt 0:01:35]} 29. Nxd2 {[%emt 0:01:51]} Rxc1+ {[%emt 0:00:03]} 30. Kg2 {[%emt 0:00:27]} Rc2 {[%emt 0:00:13]} 31. Rd4 {[%emt 0:00:24]} Ng4 {[%emt 0:00:35]} 32. e5 {[%emt 0:00:47]} Bxe5 {[%emt 0:01:22]} 33. Rd8+ {[%emt 0:00:21]} Kg7 {[%emt 0:00:03]} 34. h3 {[%emt 0:00:16]} Nf6 {[%emt 0:00:31]} 35. Nc4 {[%emt 0:00:54]} Bc3 {[%emt 0:01:01]} 36. Kf3 {[%emt 0:00:11]} Be1 {[%emt 0:00:58]} 0-1

[Event "Chess House GM December 2019"]
[Site "Aarhus"]
[Date "2019.12.14"]
[Round "5.3"]
[White "Vasli, Aref"]
[Black "Pakleza, Zbigniew"]
[Result "0-1"]
[ECO "B07"]
[WhiteElo "2413"]
[BlackElo "2503"]
[Annotator "ChessBase"]
[PlyCount "110"]
[EventDate "2019.12.11"]
[EventType "tourn"]
[EventCountry "DEN"]
[SourceTitle "playchess.com"]
[Source "ChessBase"]
[SourceQuality "1"]
[TimeControl "40/5400+30:1800+30"]

1. e4 {[%emt 0:00:00]} d6 {[%emt 0:00:00]} 2. d4 {[%emt 0:00:00]} Nf6 {[%emt 0:00:00]} 3. Nc3 {[%emt 0:00:09]} g6 {[%emt 0:00:00]} 4. f3 {[%emt 0:05:42]} c6 {[%emt 0:00:13]} 5. Be3 {[%emt 0:00:09]} Bg7 {[%emt 0:00:23]} 6. Qd2 {[%emt 0:00:10]} b5 {[%emt 0:00:06]} 7. Nge2 {[%emt 0:03:08]} O-O {[%emt 0:00:10]} 8. g4 {[%emt 0:01:22]} Re8 {[%emt 0:02:00]} 9. Ng3 {[%emt 0:02:48]} e5 {[%emt 0:01:25]} 10. dxe5 {[%emt 0:10:54]} dxe5 {[%emt 0:00:05]} 11. Bd3 {[%emt 0:01:07]} Qc7 {[%emt 0:08:34]} 12. g5 {[%emt 0:02:04]} Nfd7 {[%emt 0:00:24]} 13. h4 {[%emt 0:00:24]} b4 {[%emt 0:15:40]} 14. Na4 {[%emt 0:01:19]} c5 {[%emt 0:00:19]} 15. h5 {[%emt 0:14:37]} Nc6 {[%emt 0:08:58]} 16. hxg6 {[%emt 0:01:36]} hxg6 {[%emt 0:00:09]} 17. c3 {[%emt 0:09:57]} Qa5 {[%emt 0:12:21]} 18. Bc2 {[%emt 0:09:30]} bxc3 {[%emt 0:04:22]} 19. bxc3 {[%emt 0:00:10]} Nb6 {[%emt 0:02:18]} 20. Nxb6 {[%emt 0:02:00]} axb6 {[%emt 0:01:50]} 21. Bb3 {[%emt 0:03:15]} Be6 {[%emt 0:00:31]} 22. Bxe6 {[%emt 0:03:04]} fxe6 {[%emt 0:00:47]} 23. O-O {[%emt 0:04:02]} Red8 {[%emt 0:03:36]} 24. Qc2 {[%emt 0:02:05]} Qa4 {[%emt 0:00:33]} 25. Qxa4 {[%emt 0:02:30]} Rxa4 {[%emt 0:00:02]} 26. Rfd1 {[%emt 0:00:07]} Rxd1+ {[%emt 0:06:27]} 27. Rxd1 {[%emt 0:00:02]} Na5 {[%emt 0:00:11]} 28. Rd8+ {[%emt 0:02:04]} Bf8 {[%emt 0:05:27]} 29. Ra8 {[%emt 0:05:57]} Rxa2 {[%emt 0:07:02]} 30. Nf1 {[%emt 0:00:39]} Ra3 {[%emt 0:01:59]} 31. Bd2 {[%emt 0:05:53]} Nc4 {[%emt 0:00:49]} 32. Rxa3 {[%emt 0:00:09]} Nxa3 {[%emt 0:00:02]} 33. Ne3 {[%emt 0:00:53]} Be7 {[%emt 0:01:09]} 34. Ng4 {[%emt 0:00:41]} Nc4 {[%emt 0:00:08]} 35. Bc1 {[%emt 0:00:06]} b5 {[%emt 0:01:26]} 36. Kf1 {[%emt 0:00:08]} b4 {[%emt 0:01:14]} 37. cxb4 {[%emt 0:00:07]} cxb4 {[%emt 0:00:01]} 38. Ke2 {[%emt 0:02:32]} b3 {[%emt 0:00:34]} 39. Kd3 {[%emt 0:00:30]} b2 {[%emt 0:00:27]} 40. Bxb2 {[%emt 0:00:09]} Nxb2+ {[%emt 0:00:01]} 41. Kc2 {[%emt 0:30:12]} Nc4 {[%emt 0:34:11]} 42. Kd3 {[%emt 0:00:18]} Na5 {[%emt 0:00:30]} 43. Nxe5 {[%emt 0:00:08]} Kg7 {[%emt 0:00:38]} 44. f4 {[%emt 0:05:44]} Bd6 {[%emt 0:00:06]} 45. Nxg6 {[%emt 0:00:41]} Kxg6 {[%emt 0:00:01]} 46. f5+ {[%emt 0:00:13]} exf5 {[%emt 0:00:04]} 47. exf5+ {[%emt 0:00:06]} Kxf5 {[%emt 0:00:03]} 48. Kd4 {[%emt 0:01:50]} Bf8 {[%emt 0:00:54]} 49. Kd5 {[%emt 0:00:13]} Nb3 {[%emt 0:00:52]} 50. g6 {[%emt 0:00:42]} Bg7 {[%emt 0:00:27]} 51. Kc4 {[%emt 0:00:10]} Nd4 {[%emt 0:00:08]} 52. Kd5 {[%emt 0:00:02]} Kxg6 {[%emt 0:00:09]} 53. Ke4 {[%emt 0:00:08]} Ne6 {[%emt 0:00:25]} 54. Kf3 {[%emt 0:00:15]} Kf5 {[%emt 0:00:06]} 55. Kg3 {[%emt 0:00:34]} Nd4 {[%emt 0:00:39]} 0-1

[Event "Chess House GM December 2019"]
[Site "Aarhus"]
[Date "2019.12.14"]
[Round "5.4"]
[White "Svane, Frederik"]
[Black "Ochsner, Bjorn Moller"]
[Result "1/2-1/2"]
[ECO "A06"]
[WhiteElo "2398"]
[BlackElo "2492"]
[Annotator "ChessBase"]
[PlyCount "111"]
[EventDate "2019.12.11"]
[EventType "tourn"]
[EventCountry "DEN"]
[SourceTitle "playchess.com"]
[Source "ChessBase"]
[SourceQuality "1"]
[TimeControl "40/5400+30:1800+30"]

1. Nf3 {[%emt 0:00:00]} d5 {[%emt 0:01:20]} 2. g3 {[%emt 0:00:00]} Nf6 {[%emt 0:02:18]} 3. Bg2 {[%emt 0:00:03]} Bf5 {[%emt 0:02:35]} 4. O-O {[%emt 0:00:25]} e6 {[%emt 0:00:25]} 5. d3 {[%emt 0:00:13]} h6 {[%emt 0:00:36]} 6. b3 {[%emt 0:00:11]} Be7 {[%emt 0:00:53]} 7. Bb2 {[%emt 0:00:05]} O-O {[%emt 0:00:37]} 8. Nbd2 {[%emt 0:00:06]} Bh7 {[%emt 0:04:26]} 9. Re1 {[%emt 0:00:43]} a5 {[%emt 0:01:44]} 10. a4 {[%emt 0:00:08]} Nc6 {[%emt 0:11:03]} 11. e4 {[%emt 0:04:00]} Nb4 {[%emt 0:01:46]} 12. Ne5 {[%emt 0:02:27]} c6 {[%emt 0:01:57]} 13. h4 {[%emt 0:00:21]} Rc8 {[%emt 0:08:53]} 14. Rc1 {[%emt 0:01:38]} Na2 {[%emt 0:01:38]} 15. Ra1 {[%emt 0:00:04]} Nb4 {[%emt 0:00:07]} 16. Rc1 {[%emt 0:01:17]} Rc7 {[%emt 0:09:25]} 17. Qe2 {[%emt 0:03:58]} Na2 {[%emt 0:01:30]} 18. Ra1 {[%emt 0:00:09]} Nb4 {[%emt 0:00:05]} 19. Nf1 {[%emt 0:04:15]} c5 {[%emt 0:07:17]} 20. Nh2 {[%emt 0:07:23]} Nc6 {[%emt 0:04:07]} 21. exd5 {[%emt 0:14:19]} exd5 {[%emt 0:00:23]} 22. Nxc6 {[%emt 0:00:06]} bxc6 {[%emt 0:00:08]} 23. Nf3 {[%emt 0:20:59]} Bd6 {[%emt 0:00:47]} 24. Qd2 {[%emt 0:11:16]} Ra7 {[%emt 0:02:40]} 25. Ne5 {[%emt 0:07:44]} Qc7 {[%emt 0:01:15]} 26. Bh3 {[%emt 0:15:08]} Raa8 {[%emt 0:07:46]} 27. Nf3 {[%emt 0:00:32]} d4 {[%emt 0:03:15]} 28. Qe2 {[%emt 0:01:35]} Nd5 {[%emt 0:00:56]} 29. Nd2 {[%emt 0:01:40]} Rfd8 {[%emt 0:11:55]} 30. Nc4 {[%emt 0:00:11]} Bf8 {[%emt 0:00:44]} 31. Qf3 {[%emt 0:01:45]} Re8 {[%emt 0:04:56]} 32. Re2 {[%emt 0:00:10]} Rxe2 {[%emt 0:00:46]} 33. Qxe2 {[%emt 0:00:01]} Kh8 {[%emt 0:00:30]} 34. Re1 {[%emt 0:00:20]} f6 {[%emt 0:00:44]} 35. Qe6 {[%emt 0:00:53]} Rd8 {[%emt 0:01:03]} 36. Qe2 {[%emt 0:01:42]} Bg6 {[%emt 0:01:08]} 37. Bc1 {[%emt 0:01:01]} Bf7 {[%emt 0:00:48]} 38. Bd2 {[%emt 0:00:54]} Nb4 {[%emt 0:01:01]} 39. Bf4 {[%emt 0:01:13]} Qa7 {[%emt 0:00:16]} 40. h5 {[%emt 0:00:30]} Qa8 {[%emt 0:04:49]} 41. Nb6 {[%emt 0:02:36]} Qa7 {[%emt 0:04:28]} 42. Nc4 {[%emt 0:00:04]} Nd5 {[%emt 0:13:10]} 43. Bd2 {[%emt 0:00:26]} Nb4 {[%emt 0:00:51]} 44. Bf5 {[%emt 0:04:53]} Nxc2 {[%emt 0:04:03]} 45. Bxa5 {[%emt 0:02:39]} Rd5 {[%emt 0:01:04]} 46. Bb6 {[%emt 0:10:16]} Qb7 {[%emt 0:00:55]} 47. Qxc2 {[%emt 0:00:06]} Rxf5 {[%emt 0:00:10]} 48. Qe2 {[%emt 0:01:43]} Bxc4 {[%emt 0:04:03]} 49. Qe8 {[%emt 0:00:50]} Bg8 {[%emt 0:01:34]} 50. Qxf8 {[%emt 0:06:56]} Qxb6 {[%emt 0:00:56]} 51. f4 {[%emt 0:00:05]} Qxb3 {[%emt 0:03:21]} 52. Re7 {[%emt 0:00:07]} Qd1+ {[%emt 0:01:02]} 53. Kg2 {[%emt 0:01:35]} Qd2+ {[%emt 0:00:02]} 54. Kg1 {[%emt 0:00:09]} Qd1+ {[%emt 0:01:18]} 55. Kg2 {[%emt 0:00:05]} Qd2+ {[%emt 0:00:36]} 56. Kg1 {[%emt 0:00:07]} 1/2-1/2

[Event "Chess House GM December 2019"]
[Site "Aarhus"]
[Date "2019.12.14"]
[Round "5.5"]
[White "Vinter-Schou, Uffe"]
[Black "Jacobsen, Mikkel Manosri"]
[Result "0-1"]
[ECO "B29"]
[WhiteElo "2359"]
[BlackElo "2348"]
[Annotator "RC"]
[PlyCount "118"]
[EventDate "2019.12.11"]
[EventType "tourn"]
[EventCountry "DEN"]
[SourceTitle "playchess.com"]
[Source "ChessBase"]
[SourceQuality "1"]
[TimeControl "40/5400+30:1800+30"]

1. e4 {[%emt 0:00:00]} c5 {[%emt 0:00:00]} 2. Nf3 {[%emt 0:00:00]} Nf6 {[%emt 0:00:00]} 3. Nc3 {[%emt 0:00:23]} d5 {[%emt 0:00:00]} 4. e5 {[%emt 0:00:37]} Nfd7 {[%emt 0:00:08]} 5. d4 {[%emt 0:21:06]} e6 {[%emt 0:00:37]} 6. Ne2 {[%emt 0:16:21]} b6 {[%emt 0:06:44]} 7. c3 {[%emt 0:00:49]} Ba6 {[%emt 0:00:34]} 8. g3 {[%emt 0:03:23]} Nc6 {[%emt 0:08:48]} 9. Bg2 {[%emt 0:07:08]} cxd4 {[%emt 0:01:16]} 10. cxd4 {[%emt 0:00:09]} Nb4 {[%emt 0:00:22]} 11. O-O {[%emt 0:01:03]} Qc8 {[%emt 0:00:14]} 12. Ne1 {[%emt 0:11:51]} Qc4 {[%emt 0:07:23]} 13. Bf3 {[%emt 0:00:08]} Rc8 {[%emt 0:00:17]} 14. a3 {[%emt 0:04:37]} Nc6 {[%emt 0:09:46]} 15. b3 {[%emt 0:05:33]} Qb5 {[%emt 0:00:13]} 16. Ra2 {[%emt 0:10:16]} Nxd4 {[%emt 0:02:37]} 17. Qxd4 {[%emt 0:01:24]} Rxc1 {[%emt 0:00:07]} 18. a4 {[%emt 0:02:45]} Qc5 {[%emt 0:01:08]} 19. Qf4 {[%emt 0:01:52]} Rd1 {[%emt 0:02:16]} 20. Nc2 {[%emt 0:03:51]} Rxf1+ {[%emt 0:00:16]} 21. Kxf1 {[%emt 0:00:01]} Qc7 {[%emt 0:00:29]} 22. Ncd4 {[%emt 0:01:05]} Qxe5 {[%emt 0:00:25]} 23. Qd2 {[%emt 0:00:40]} Bc5 {[%emt 0:02:00]} 24. Kg2 {[%emt 0:00:04]} O-O {[%emt 0:02:07]} 25. Nb5 {[%emt 0:01:20]} Qb8 {[%emt 0:01:34]} 26. b4 {[%emt 0:01:36]} Be7 {[%emt 0:01:20]} 27. Ned4 {[%emt 0:00:08]} Rc8 {[%emt 0:02:02]} 28. Qe3 {[%emt 0:02:47]} Ne5 {[%emt 0:04:15]} 29. Be2 {[%emt 0:00:16]} Bf6 {[%emt 0:01:22]} 30. f4 {[%emt 0:00:57]} Nc4 {[%emt 0:00:54]} 31. Qf2 {[%emt 0:00:36]} g6 {[%emt 0:02:14]} 32. Bg4 {[%emt 0:00:15]} Nd6 {[%emt 0:05:55]} 33. Rc2 {[%emt 0:02:41]} Nxb5 {[%emt 0:02:22]} 34. Nc6 {[%emt 0:00:43]} Qb7 {[%emt 0:02:03]} 35. axb5 {[%emt 0:00:01]} Bxb5 {[%emt 0:00:09]} 36. Ne5 {[%emt 0:00:08]} Rxc2 {[%emt 0:00:40]} 37. Qxc2 {[%emt 0:00:02]} Be8 {[%emt 0:01:03]} 38. Be2 {[%emt 0:00:21]} Bxe5 {[%emt 0:00:49]} 39. fxe5 {[%emt 0:00:02]} a5 {[%emt 0:00:39]} 40. b5 {[%emt 0:00:18]} Bd7 {[%emt 0:02:03]} 41. h4 {[%emt 0:07:19]} Qc8 {[%emt 0:00:28]} 42. Qd2 {[%emt 0:00:05]} a4 {[%emt 0:02:14]} 43. h5 {[%emt 0:02:46]} a3 {[%emt 0:01:07]} 44. h6 {[%emt 0:01:37]} Qf8 {[%emt 0:03:52]} 45. Bd3 {[%emt 0:02:35]} f6 {[%emt 0:01:40]} 46. Qc3 {[%emt 0:02:41]} Qc5 {[%emt 0:00:26]} 47. Qd2 {[%emt 0:02:19]} Bxb5 {[%emt 0:01:05]} 48. exf6 {[%emt 0:02:57]} Bxd3 {[%emt 0:01:06]} 49. f7+ {[%emt 0:00:35]} Kxf7 {[%emt 0:00:12]} 50. Qxd3 {[%emt 0:00:59]} a2 {[%emt 0:05:22]} 51. Qf1+ {[%emt 0:01:25]} Ke7 {[%emt 0:00:14]} 52. Qa6 {[%emt 0:00:41]} Qa5 {[%emt 0:04:06]} 53. Qb7+ {[%emt 0:00:06]} Kd6 {[%emt 0:00:04]} 54. Qb8+ {[%emt 0:00:38]} Kc6 {[%emt 0:01:24]} 55. Qe8+ {[%emt 0:02:18]} Kb7 {[%emt 0:00:36]} 56. Qd7+ {[%emt 0:00:26]} Ka6 {[%emt 0:00:07]} 57. Qc8+ {[%emt 0:00:10]} Kb5 {[%emt 0:00:05]} 58. Qe8+ {[%emt 0:00:13]} Kb4 {[%emt 0:00:16]} 59. Qf8+ {[%emt 0:00:51]} Kb3 {[%emt 0:00:05]} 0-1

[Event "Chess House GM December 2019"]
[Site "Aarhus"]
[Date "2019.12.15"]
[Round "7.1"]
[White "Olsen, Filip Boe"]
[Black "Danielsen, Henrik"]
[Result "1/2-1/2"]
[ECO "B38"]
[WhiteElo "2341"]
[BlackElo "2500"]
[Annotator "ChessBase"]
[PlyCount "65"]
[EventDate "2019.12.11"]
[EventType "tourn"]
[EventCountry "DEN"]
[SourceTitle "playchess.com"]
[Source "ChessBase"]
[SourceQuality "1"]
[TimeControl "40/5400+30:1800+30"]

1. d4 {[%emt 0:00:00]} g6 {[%emt 0:00:00]} 2. Nf3 {[%emt 0:00:00]} Bg7 {[%emt 0:00:00]} 3. c4 {[%emt 0:00:10]} c5 {[%emt 0:00:59]} 4. e4 {[%emt 0:02:12]} cxd4 {[%emt 0:03:21]} 5. Nxd4 {[%emt 0:00:58]} Nc6 {[%emt 0:00:07]} 6. Be3 {[%emt 0:03:10]} Nf6 {[%emt 0:00:16]} 7. Nc3 {[%emt 0:08:28]} O-O {[%emt 0:00:13]} 8. Be2 {[%emt 0:00:55]} d6 {[%emt 0:00:05]} 9. O-O {[%emt 0:01:24]} Bd7 {[%emt 0:00:07]} 10. h3 {[%emt 0:02:03]} Nxd4 {[%emt 0:01:41]} 11. Bxd4 {[%emt 0:00:22]} Bc6 {[%emt 0:00:07]} 12. Qc2 {[%emt 0:01:46]} a5 {[%emt 0:00:16]} 13. Rad1 {[%emt 0:05:28]} Nd7 {[%emt 0:00:22]} 14. Bxg7 {[%emt 0:00:10]} Kxg7 {[%emt 0:00:07]} 15. Bg4 {[%emt 0:00:13]} Ne5 {[%emt 0:03:28]} 16. c5 {[%emt 0:00:33]} Nxg4 {[%emt 0:05:29]} 17. hxg4 {[%emt 0:00:10]} Qc8 {[%emt 0:00:41]} 18. cxd6 {[%emt 0:00:12]} Qxg4 {[%emt 0:00:18]} 19. dxe7 {[%emt 0:00:20]} Rfe8 {[%emt 0:00:09]} 20. Nd5 {[%emt 0:00:22]} Bxd5 {[%emt 0:00:07]} 21. Qc3+ {[%emt 0:01:06]} Kg8 {[%emt 0:00:48]} 22. exd5 {[%emt 0:00:10]} Rxe7 {[%emt 0:00:05]} 23. Qf6 {[%emt 0:01:52]} Rd7 {[%emt 0:02:45]} 24. Rfe1 {[%emt 0:06:32]} Rad8 {[%emt 0:00:16]} 25. Rd4 {[%emt 0:01:57]} Qh5 {[%emt 0:02:38]} 26. Rde4 {[%emt 0:00:44]} Rf8 {[%emt 0:02:16]} 27. Re8 {[%emt 0:02:27]} Qh6 {[%emt 0:00:02]} 28. R1e7 {[%emt 0:02:36]} Rxe7 {[%emt 0:01:57]} 29. Qxe7 {[%emt 0:02:35]} Qc1+ {[%emt 0:00:23]} 30. Kh2 {[%emt 0:03:47]} Qf4+ {[%emt 0:00:20]} 31. Kg1 {[%emt 0:06:17]} Qc1+ {[%emt 0:00:01]} 32. Kh2 {[%emt 0:02:14]} Qf4+ {[%emt 0:00:02]} 33. Kg1 {[%emt 0:00:57]} 1/2-1/2

[Event "Chess House GM December 2019"]
[Site "Aarhus"]
[Date "2019.12.15"]
[Round "7.2"]
[White "Svane, Frederik"]
[Black "Thybo, Jesper Sondergaard"]
[Result "0-1"]
[ECO "B51"]
[WhiteElo "2398"]
[BlackElo "2576"]
[Annotator "ChessBase"]
[PlyCount "74"]
[EventDate "2019.12.11"]
[EventType "tourn"]
[EventCountry "DEN"]
[SourceTitle "playchess.com"]
[Source "ChessBase"]
[SourceQuality "1"]
[TimeControl "40/5400+30:1800+30"]

1. e4 {[%emt 0:00:00]} c5 {[%emt 0:00:00]} 2. Nf3 {[%emt 0:00:00]} d6 {[%emt 0:00:00]} 3. Bb5+ {[%emt 0:00:06]} Nd7 {[%emt 0:00:00]} 4. d4 {[%emt 0:00:06]} cxd4 {[%emt 0:00:00]} 5. Qxd4 {[%emt 0:00:06]} a6 {[%emt 0:00:09]} 6. Bxd7+ {[%emt 0:00:08]} Bxd7 {[%emt 0:00:05]} 7. Nc3 {[%emt 0:00:13]} Nf6 {[%emt 0:00:59]} 8. Bg5 {[%emt 0:01:42]} e6 {[%emt 0:10:09]} 9. O-O {[%emt 0:12:22]} h6 {[%emt 0:01:42]} 10. Bh4 {[%emt 0:01:12]} e5 {[%emt 0:06:49]} 11. Qd3 {[%emt 0:03:02]} g5 {[%emt 0:00:29]} 12. Bg3 {[%emt 0:00:05]} Be7 {[%emt 0:01:54]} 13. Nd2 {[%emt 0:03:50]} b5 {[%emt 0:01:24]} 14. Rfd1 {[%emt 0:04:59]} Rc8 {[%emt 0:04:08]} 15. Nf1 {[%emt 0:21:46]} h5 {[%emt 0:06:22]} 16. f3 {[%emt 0:09:10]} b4 {[%emt 0:00:45]} 17. Nd5 {[%emt 0:02:37]} Nxd5 {[%emt 0:00:19]} 18. Qxd5 {[%emt 0:00:06]} Rxc2 {[%emt 0:03:41]} 19. Qb3 {[%emt 0:10:38]} Qb6+ {[%emt 0:31:56]} 20. Kh1 {[%emt 0:00:04]} Re2 {[%emt 0:00:57]} 21. Be1 {[%emt 0:07:32]} h4 {[%emt 0:13:37]} 22. Qxb4 {[%emt 0:02:40]} Bb5 {[%emt 0:04:43]} 23. a4 {[%emt 0:06:43]} h3 {[%emt 0:00:04]} 24. gxh3 {[%emt 0:00:03]} d5 {[%emt 0:00:12]} 25. Qc3 {[%emt 0:07:09]} Qe6 {[%emt 0:00:18]} 26. Rac1 {[%emt 0:02:31]} Bc4 {[%emt 0:01:35]} 27. f4 {[%emt 0:01:50]} gxf4 {[%emt 0:01:58]} 28. Rd2 {[%emt 0:02:31]} Qxh3 {[%emt 0:04:49]} 29. Qxh3 {[%emt 0:00:36]} Rxh3 {[%emt 0:00:04]} 30. Rxe2 {[%emt 0:00:39]} Bxe2 {[%emt 0:00:04]} 31. Kg2 {[%emt 0:00:08]} Rb3 {[%emt 0:02:31]} 32. exd5 {[%emt 0:00:07]} Rxb2 {[%emt 0:02:49]} 33. Bc3 {[%emt 0:00:05]} Bxf1+ {[%emt 0:00:27]} 34. Kxf1 {[%emt 0:00:01]} Rxh2 {[%emt 0:00:06]} 35. Be1 {[%emt 0:00:18]} e4 {[%emt 0:00:47]} 36. Rc8+ {[%emt 0:00:37]} Kd7 {[%emt 0:00:03]} 37. Ra8 {[%emt 0:00:04]} Rh1+ {[%emt 0:00:16]} 0-1

[Event "Chess House GM December 2019"]
[Site "Aarhus"]
[Date "2019.12.15"]
[Round "7.5"]
[White "Vasli, Aref"]
[Black "Jacobsen, Mikkel Manosri"]
[Result "0-1"]
[ECO "B13"]
[WhiteElo "2413"]
[BlackElo "2348"]
[Annotator "NA"]
[PlyCount "64"]
[EventDate "2019.12.11"]
[EventType "tourn"]
[EventCountry "DEN"]
[SourceTitle "playchess.com"]
[Source "ChessBase"]
[SourceQuality "1"]
[TimeControl "40/5400+30:1800+30"]

1. e4 {[%emt 0:00:00]} c6 {[%emt 0:00:00]} 2. d4 {[%emt 0:00:00]} d5 {[%emt 0:00:00]} 3. exd5 {[%emt 0:00:00]} cxd5 {[%emt 0:00:00]} 4. c4 {[%emt 0:00:01]} Nf6 {[%emt 0:00:00]} 5. Nc3 {[%emt 0:00:07]} Nc6 {[%emt 0:00:00]} 6. Bg5 {[%emt 0:00:13]} Be6 {[%emt 0:00:12]} 7. a3 {[%emt 0:00:16]} Qd7 {[%emt 0:00:48]} 8. Nf3 {[%emt 0:00:10]} Ne4 {[%emt 0:04:15]} 9. cxd5 {[%emt 0:16:09]} Bxd5 {[%emt 0:01:48]} 10. Be3 {[%emt 0:01:22]} Nxc3 {[%emt 0:03:13]} 11. bxc3 {[%emt 0:00:08]} g6 {[%emt 0:00:43]} 12. Be2 {[%emt 0:03:28]} Bg7 {[%emt 0:00:22]} 13. O-O {[%emt 0:00:23]} O-O {[%emt 0:00:16]} 14. c4 {[%emt 0:08:42]} Bxf3 {[%emt 0:08:05]} 15. Bxf3 {[%emt 0:00:05]} Nxd4 {[%emt 0:04:17]} 16. Bxd4 {[%emt 0:00:07]} Bxd4 {[%emt 0:00:44]} 17. Rb1 {[%emt 0:04:14]} Rab8 {[%emt 0:00:28]} 18. Rb5 {[%emt 0:06:03]} e6 {[%emt 0:00:52]} 19. Qb1 {[%emt 0:00:26]} Qe7 {[%emt 0:04:43]} 20. Rxb7 {[%emt 0:12:42]} Rxb7 {[%emt 0:00:45]} 21. Qxb7 {[%emt 0:00:03]} Qxa3 {[%emt 0:02:45]} 22. Qc7 {[%emt 0:04:25]} Qc3 {[%emt 0:03:05]} 23. Rd1 {[%emt 0:04:43]} Bb6 {[%emt 0:01:05]} 24. Qf4 {[%emt 0:11:42]} Qc2 {[%emt 0:01:25]} 25. Rf1 {[%emt 0:02:11]} Rc8 {[%emt 0:00:56]} 26. Bb7 {[%emt 0:07:53]} Qxc4 {[%emt 0:05:20]} 27. Qf3 {[%emt 0:02:06]} Rc5 {[%emt 0:04:24]} 28. g3 {[%emt 0:00:29]} Rf5 {[%emt 0:00:52]} 29. Qa3 {[%emt 0:00:29]} Qe2 {[%emt 0:00:58]} 30. Kg2 {[%emt 0:01:17]} Rxf2+ {[%emt 0:01:21]} 31. Rxf2 {[%emt 0:00:07]} Qxf2+ {[%emt 0:00:07]} 32. Kh1 {[%emt 0:02:26]} Qg1# {[%emt 0:00:04]} 0-1